bitfinex-derivatives/quotes_ETHF0:USTF0_20250327
["timestamp","ask_amount","ask_price","bid_price","bid_amount"]
[1743096921376,3.2078,2003.5,2003.4,0.99848]
[1743096921874,4.5841,2003.5,2003.4,2.31358]
[1743096922274,5.58253,2003.5,2003.4,2.31358]
[1743096922481,5.2984,2003.5,2003.3,4.25751]
[1743096922673,3.03248,2003.4,2003.3,4.25751]
[1743096923477,2.034,2003.4,2003.3,4.25751]
[1743096923679,3.2078,2003.5,2003.4,0.99848]
[1743096923875,3.2078,2003.5,2003.4,2.37618]
[1743096925368,5.53153,2003.5,2003.4,5.63618]
[1743096925671,5.9419,2003.5,2003.4,5.63618]
[1743096925878,5.236,2003.5,2003.4,5.63618]
[1743096926077,3.2078,2003.5,2003.4,6.30458]
[1743096926673,0.00747589,2003.6,2003.5,0.99843]
[1743096926872,0.00747589,2003.6,2003.5,3.02273]
[1743096927372,0.00747589,2003.6,2003.5,6.28873]
[1743096928065,0.00747589,2003.6,2003.5,6.28773]
[1743096929881,0.00747589,2003.6,2003.5,3.02273]
[1743096930083,0.00747589,2003.6,2003.5,6.28973]
[1743096930285,0.00747589,2003.6,2003.5,3.02273]
[1743096930986,0.00747589,2003.6,2003.5,6.28973]
[1743096930987,1.36057589,2003.6,2003.5,6.28973]
[1743096931281,3.69165589,2003.6,2003.5,6.28973]
[1743096931482,2.69327589,2003.6,2003.5,6.28973]
[1743096931979,1.34017589,2003.6,2003.5,6.28973]
[1743096933078,0.00747589,2003.6,2003.5,6.28973]
[1743096934987,1.3737,2004.1,2004.0,0.99818]
[1743096936183,2.37183,2004.1,2004.0,0.99818]
[1743096936487,2.7598,2004.1,2004.0,0.99818]
[1743096936689,1.3861,2004.1,2004.0,0.99818]
[1743096936880,1.3861,2004.1,2004.0,3.81638]
[1743096937080,1.3861,2004.2,2004.1,0.99813]
[1743096937388,0.00747589,2004.3,2004.2,0.99808]
[1743096937589,0.00747589,2004.3,2004.2,4.26108]
[1743096937786,0.00747589,2004.3,2004.2,5.66588]
[1743096938289,0.00747589,2004.3,2004.2,2.40288]
[1743096938481,1.36727589,2004.3,2004.2,4.26008]
[1743096938681,2.72797589,2004.3,2004.2,4.26008]
[1743096940375,3.72600589,2004.3,2004.2,0.99808]
[1743096942088,3.72602589,2004.3,2004.2,0.99808]
[1743096943494,2.72797589,2004.3,2004.2,0.99808]
[1743096944387,0.99812,2004.2,2004.1,4.25509]
[1743096944587,0.99812,2004.2,2004.0,1.3687]
[1743096944588,0.99818,2004.1,2004.0,0.99815]
[1743096944887,0.99817,2004.1,2004.0,0.99814]
[1743096945087,2.41057,2004.1,2004.0,0.99814]
[1743096945799,1.4124,2004.1,2004.0,0.99814]
[1743096946088,1.4124,2004.1,2004.0,3.05774]
[1743096946786,1.36727589,2004.3,2004.0,2.0596]
[1743096946991,0.00747589,2004.3,2004.2,0.99808]
[1743096947192,0.00747589,2004.3,2004.2,4.93348]
[1743096948590,1.4345,2004.6,2004.5,0.99793]
[1743096948889,3.2078,2004.8,2004.7,0.99783]
[1743096949091,4.20558,2004.8,2004.7,0.99783]
[1743096949389,0.99786,2004.7,2004.6,0.99784]
[1743096949595,0.99786,2004.7,2004.6,4.25884]
[1743096950181,1.4345,2004.7,2004.4,2.12847589]
[1743096950390,2.39922,2004.6,2004.5,0.99793]
[1743096950787,1.4013,2004.6,2004.5,0.99793]
[1743096950994,0.6827,2004.6,2004.5,2.39853]
[1743096951188,2.1226,2004.6,2004.5,3.08163]
[1743096951892,1.4399,2004.6,2004.5,3.08163]
[1743096952295,3.8792,2004.8,2004.7,0.99783]
[1743096952496,4.6477,2004.8,2004.7,4.26083]
[1743096952890,3.2078,2004.8,2004.7,4.91903]
[1743096953094,4.6477,2004.8,2004.7,4.91903]
[1743096955504,3.2078,2004.8,2004.7,4.91903]
[1743096959404,1.31207589,2004.9,2004.8,0.99778]
[1743096959606,1.31207589,2004.9,2004.8,2.39188]
[1743096964595,1.31207589,2004.9,2004.5,3.17793]
[1743096964802,0.99787,2004.7,2004.6,4.25085]
[1743096965004,3.8851,2004.8,2004.7,0.99783]
[1743096965206,4.88292,2004.8,2004.7,0.99783]
[1743096965399,3.8851,2004.8,2004.7,0.99783]
[1743096965601,4.88288,2004.8,2004.7,0.99783]
[1743096968605,3.8851,2004.8,2004.7,0.99783]
[1743096969006,4.88288,2004.8,2004.7,0.99783]
[1743096969325,3.8851,2004.8,2004.7,0.99783]
[1743096969516,4.88288,2004.8,2004.7,0.99783]
[1743096969709,2.49458,2004.7,2004.4,0.00747589]
[1743096970013,4.20573,2004.5,2004.4,1.00542589]
[1743096970616,4.20573,2004.5,2004.4,0.00747589]
[1743096970817,4.20573,2004.5,2004.4,1.00545589]
[1743096972011,4.20573,2004.5,2004.4,0.00747589]
[1743096972717,0.99803,2004.3,2004.2,54.55706]
[1743096973217,0.99803,2004.3,2004.2,0.99806]
[1743096974111,0.7188,2004.4,2004.3,0.99803]
[1743096974317,0.7188,2004.4,2004.3,4.24903]
[1743096975216,0.7188,2004.4,2004.3,5.59763]
[1743096976114,1.4383,2004.4,2004.3,5.59763]
[1743096976320,1.4383,2004.4,2004.2,0.6723]
[1743096976321,1.4383,2004.4,2004.2,0.99805]
[1743096976507,0.99807,2004.3,2004.1,3.257]
[1743096976709,3.2078,2004.2,2004.1,4.25513]
[1743096977107,4.20588,2004.2,2004.1,4.25513]
[1743096978717,0.99813,2004.1,2004.0,4.26062589]
[1743096979018,0.7053,2004.1,2004.0,1.00565589]
[1743096979922,1.70343,2004.1,2004.0,1.00565589]
[1743096980220,0.7053,2004.1,2004.0,1.00565589]
[1743096980428,1.70343,2004.1,2004.0,1.00565589]
[1743096980719,1.70343,2004.1,2004.0,0.00747589]
[1743096981922,3.09653,2004.1,2004.0,0.00747589]
[1743096982815,0.9983,2003.8,2003.5,53.47537]
[1743096983022,4.2061,2003.8,2003.7,0.99833]
[1743096986530,0.99833,2003.7,2003.6,1.4441]
[1743096986825,1.65878,2003.7,2003.6,0.99838]
[1743096987219,0.99838,2003.6,2003.5,0.00747589]
[1743096987527,0.99857,2003.3,2003.2,4.25553]
[1743096987724,4.20637,2003.3,2003.2,0.99853]
[1743096988727,0.99858,2003.2,2003.1,5.6149]
[1743096988929,2.42308,2003.2,2003.1,5.6149]
[1743096991130,1.4245,2003.2,2003.1,5.6149]
[1743096991432,2.42308,2003.2,2003.1,4.25663]
[1743096992127,2.42308,2003.2,2003.1,5.66613]
[1743096993530,0.99863,2003.1,2003.0,3.9448]
[1743096994231,0.99863,2003.1,2003.0,5.306]
[1743096994434,0.99863,2003.1,2003.0,6.30468]
[1743097001835,2.32183,2003.1,2003.0,6.30468]
[1743097003332,2.32183,2003.1,2002.9,0.9987]
[1743097003333,0.99868,2003.0,2002.9,0.9987]
[1743097003535,0.99873,2002.9,2002.8,56.61053]
[1743097003732,0.99873,2002.9,2002.8,51.96963]
[1743097003935,3.08243,2002.9,2002.8,51.96968]
[1743097004237,3.08243,2002.9,2002.8,50.311]
[1743097004435,0.99878,2002.8,2002.7,4.24078]
[1743097004640,0.99888,2002.7,2002.6,0.99883]
[1743097004940,4.20668,2002.7,2002.6,0.99883]
[1743097005138,5.63618,2002.7,2002.6,0.99883]
[1743097006433,5.63618,2002.7,2002.4,1.3272]
[1743097006627,2.49745,2002.4,2002.0,2.49795]
[1743097006832,0.99911,2002.2,2002.1,1.66106]
[1743097007028,4.20691,2002.2,2002.1,1.66106]
[1743097007443,5.60751,2002.2,2002.1,1.66106]
[1743097008338,5.60751,2002.2,2002.1,0.662]
[1743097008633,0.99913,2002.1,2002.0,0.99915]
[1743097008837,4.20691,2002.2,2002.1,0.99913]
[1743097010129,0.99917,2002.1,2002.0,0.99913]
[1743097013138,4.20692,2002.2,2002.1,0.99913]
[1743097014432,0.99918,2002.1,2002.0,0.99913]
[1743097014739,0.99918,2002.0,2001.9,2.34792]
[1743097015043,0.99918,2002.0,2001.9,1.66122]
[1743097020346,0.99923,2001.9,2001.8,0.99924]
[1743097020640,4.89023,2001.9,2001.8,0.99924]
[1743097021039,0.99935,2001.8,2001.5,50.337]
[1743097021233,0.99955,2001.3,2001.2,0.99951]
[1743097021540,0.99963,2001.1,2001.0,0.99965]
[1743097021743,0.99976,2000.9,2000.6,2.49968]
[1743097021949,3.2078,2000.7,2000.6,2.43588]
[1743097022130,1.3408,2001.0,2000.3,12.35048]
[1743097022131,1.3408,2001.0,2000.7,2.49956]
[1743097022336,34.0078,2000.9,2000.8,0.99973]
[1743097022841,35.00753,2000.9,2000.8,0.99973]
[1743097023146,0.99984,2000.8,2000.7,0.99979]
[1743097023445,0.99984,2000.8,2000.5,2.4998]
[1743097023446,0.99991,2000.6,2000.5,0.99986]
[1743097023743,0.99998,2000.5,2000.1,2.50032]
[1743097023937,4.20786,2000.3,2000.2,1.0]
[1743097024140,3.2078,2000.3,1999.8,3.2078]
[1743097024448,3.2078,2000.1,1999.8,3.22067]
[1743097024643,2.38642,2000.0,1999.9,1.00023]
[1743097024942,7.09446,2000.0,1999.5,5.83197]
[1743097025148,1.00033,1999.8,1999.7,1.00028]
[1743097025350,4.20813,1999.8,1999.3,5.952]
[1743097025540,4.20828,1999.5,1999.4,1.00043]
[1743097026047,1.00053,1999.4,1999.3,1.00048]
[1743097026347,1.3862,1999.4,1999.3,1.00053]
[1743097026743,2.38668,1999.4,1999.3,1.00053]
[1743097026948,1.00053,1999.3,1999.2,1.0401136]
[1743097027143,2.43793,1999.3,1999.2,1.0401136]
[1743097027649,33.23793,1999.3,1999.2,1.0401136]
[1743097028042,33.23793,1999.3,1999.2,0.0395836]
[1743097028242,33.23793,1999.3,1999.2,0.03210182]
[1743097029343,1.00077,1998.9,1998.5,2.50221]
[1743097029645,3.2078,1998.9,1998.8,1.00073]
[1743097029841,1.00082,1998.8,1998.7,1.00079]
[1743097030041,3.21529475,1998.9,1998.4,5.71014]
[1743097030244,4.20868,1998.6,1998.5,1.00093]
[1743097030646,3.2078,1998.6,1998.1,2.50282]
[1743097030846,3.2078,1998.4,1998.3,1.00103]
[1743097031145,2.50201,1998.8,1998.7,1.00078]
[1743097031146,3.2078,1998.8,1998.7,1.00078]
[1743097031651,4.20858,1998.8,1998.7,1.00078]
[1743097031949,4.20862,1998.8,1998.7,1.00083]
[1743097032948,3.2078,1998.8,1998.7,1.00083]
[1743097033249,0.00749475,1998.9,1998.8,1.00078]
[1743097033752,3.2078,1999.4,1999.3,1.00053]
[1743097034954,4.6422,1999.4,1999.3,1.00053]
[1743097035448,5.64268,1999.4,1999.3,1.00053]
[1743097035750,5.64268,1999.4,1999.2,0.00749475]
[1743097035751,1.00053,1999.3,1999.2,0.00749475]
[1743097035947,2.43493,1999.3,1999.2,0.00749475]
[1743097036248,4.93493,1999.3,1999.2,0.00749475]
[1743097037552,35.73493,1999.3,1999.2,0.00749475]
[1743097038151,1.00083,1998.7,1998.6,1.00084]
[1743097038345,4.20863,1998.7,1998.6,1.00084]
[1743097039052,1.00098,1998.5,1998.4,1.00093]
[1743097039349,4.20878,1998.5,1998.4,1.00093]
[1743097039856,1.00112,1998.2,1998.1,1.00106]
[1743097040043,4.20892,1998.2,1998.1,1.00106]
[1743097040249,2.50295,1998.0,1997.2,3.2078]
[1743097040445,4.41027,1997.9,1997.8,1.00128]
[1743097040643,4.20903,1997.9,1997.8,1.00128]
[1743097040843,1.00133,1997.8,1997.7,1.00128]
[1743097041049,3.2078,1998.1,1997.9,1.00118]
[1743097041259,3.2078,1998.1,1998.0,1.00118]
[1743097041459,0.00749475,1998.3,1998.2,1.00108]
[1743097041752,1.00852475,1998.3,1998.2,1.00108]
[1743097042151,2.41062475,1998.3,1998.2,1.00108]
[1743097042347,1.40959475,1998.3,1998.2,1.00108]
[1743097042549,0.00749475,1998.3,1998.2,1.00108]
[1743097042753,1.00108,1998.2,1998.1,1.00109]
[1743097042953,1.00117,1998.1,1998.0,1.00114]
[1743097043157,1.4021,1998.1,1998.0,1.00114]
[1743097043356,4.20891,1998.2,1998.1,1.00113]
[1743097043858,1.00127,1997.9,1997.8,1.0012]
[1743097044050,4.20907,1997.9,1997.8,1.0012]
[1743097044858,4.20903,1997.9,1997.8,1.0012]
[1743097045458,3.2078,1997.9,1997.8,1.0012]
[1743097046252,3.2078,1998.1,1998.0,1.00118]
[1743097047149,4.20893,1998.1,1998.0,1.00118]
[1743097047556,3.2078,1998.1,1998.0,1.00118]
[1743097048451,4.59179475,1998.3,1998.2,1.00108]
[1743097048753,3.21529475,1998.3,1998.2,1.00108]
[1743097049158,4.21632475,1998.3,1998.2,1.00108]
[1743097049354,1.0012,1998.0,1997.9,1.00121]
[1743097049654,4.20896,1998.1,1998.0,1.00118]
[1743097049851,1.00118,1998.0,1997.9,4.7273]
[1743097050051,2.42658,1998.0,1997.9,1.3113]
[1743097050260,1.00134,1997.7,1997.6,1.00134]
[1743097050461,3.2078,1997.9,1997.7,1.00131]
[1743097050660,1.00132,1997.8,1997.7,1.00131]
[1743097050865,1.00133,1997.7,1997.6,2.31264]
[1743097051260,4.20905,1997.9,1997.8,1.00128]
[1743097051565,1.00133,1997.7,1997.6,2.31263]
[1743097051763,1.00133,1997.7,1997.6,1.00133]
[1743097052158,4.20913,1997.7,1997.6,1.00133]
[1743097052367,3.2078,1997.7,1997.6,1.00133]
[1743097052662,1.00146,1997.5,1997.4,1.00142]
[1743097052966,4.20926,1997.5,1997.4,1.00142]
[1743097053164,3.2078,1997.5,1996.8,3.2078]
[1743097053371,1.3817,1997.6,1996.7,1.00178]
[1743097053372,1.00184,1996.8,1996.7,1.00178]
[1743097053680,3.21529475,1996.9,1995.8,5.952]
[1743097053890,1.00253,1995.3,1995.2,8.44386092]
[1743097054064,4.21033,1995.3,1995.2,13.89585092]
[1743097054259,5.20933,1995.3,1995.2,13.89585092]
[1743097054562,4.2068,1995.3,1995.2,8.37843092]
[1743097054959,3.2078,1995.3,1995.2,8.37843092]
[1743097055362,3.2078,1995.3,1995.2,7.09234092]
[1743097056067,4.21033,1995.3,1995.2,6.08976092]
[1743097056459,6.71033,1995.3,1995.2,6.08976092]
[1743097056857,3.2078,1995.3,1995.2,7.09234092]
[1743097057568,2.1209,1995.3,1995.2,1.00258]
[1743097057766,1.00285,1994.7,1993.8,9.1598]
[1743097058062,3.2078,1994.2,1994.0,2.50797]
[1743097058264,3.2078,1994.2,1994.1,1.00313]
[1743097058769,0.00751389,1994.3,1994.2,1.00308]
[1743097059069,3.2078,1994.7,1994.6,1.00288]
[1743097059370,3.2078,1994.9,1994.8,1.00278]
[1743097059560,3.2078,1995.2,1995.1,1.00263]
[1743097060457,3.2078,1995.6,1995.3,2.50633]
[1743097060663,3.2078,1995.9,1995.8,1.00228]
[1743097061068,4.634,1996.1,1996.0,1.00218]
[1743097061267,3.2078,1996.1,1996.0,1.00218]
[1743097061666,5.7078,1996.1,1995.4,5.7139]
[1743097061870,3.2078,1995.8,1995.7,1.00233]
[1743097062070,3.2078,1995.8,1995.7,2.34073]
[1743097062658,3.2078,1996.0,1995.9,1.00223]
[1743097063171,0.00751389,1996.2,1996.1,1.00213]
[1743097063568,3.2078,1996.6,1996.5,1.00193]
[1743097065779,0.00751389,1996.7,1996.6,1.00188]
[1743097068171,0.00751389,1996.7,1996.4,3.95154389]
[1743097068480,3.21531389,1996.7,1996.6,1.00188]
[1743097068770,0.00751389,1996.7,1996.6,1.00188]
[1743097068974,3.2078,1996.9,1996.8,1.00178]
[1743097070167,5.52753,1997.1,1997.0,1.00168]
[1743097070473,0.00751389,1997.0,1996.9,1.00168]
[1743097070668,0.00751389,1997.0,1996.9,2.32698]
[1743097073779,0.00751389,1997.0,1996.9,1.00168]
[1743097074082,2.42119389,1997.0,1996.9,1.00168]
[1743097074579,1.00173,1996.9,1996.8,2.32224]
[1743097074775,1.00173,1996.9,1996.5,6.35983]
[1743097074776,1.00178,1996.8,1996.7,1.0018]
[1743097074975,2.41378,1996.8,1996.7,1.0018]
[1743097075170,1.412,1996.8,1996.7,1.0018]
[1743097075376,2.41378,1996.8,1996.7,1.0018]
[1743097075975,1.412,1996.8,1996.7,1.00183]
[1743097076171,2.41378,1996.8,1996.7,1.00183]
[1743097076567,1.00188,1996.6,1996.5,2.43287]
[1743097076781,4.20968,1996.6,1996.5,2.43287]
[1743097076975,1.00193,1996.5,1996.4,0.00751389]
[1743097077181,2.44353,1996.5,1996.4,0.00751389]
[1743097077380,2.44353,1996.5,1996.4,1.00949389]
[1743097077579,3.2078,1996.6,1996.5,1.00193]
[1743097077775,3.2078,1996.6,1996.5,2.43293]
[1743097078078,3.21531389,1997.0,1996.9,1.00173]
[1743097078283,0.00751389,1997.0,1996.9,1.00173]
[1743097078483,3.21531389,1997.0,1996.9,1.00173]
[1743097078673,3.21531389,1997.0,1996.9,2.44363]
[1743097078874,0.00751389,1997.0,1996.9,2.44363]
[1743097079075,3.2078,1997.5,1996.9,1.4419]
[1743097079279,3.2078,1997.7,1997.6,1.00133]
[1743097080679,0.00751389,1997.8,1997.7,1.00133]
[1743097080875,1.00879389,1997.8,1997.7,1.00133]
[1743097081081,0.00751389,1997.8,1997.7,1.00133]
[1743097081584,1.00879389,1997.8,1997.7,1.00133]
[1743097081773,0.00751389,1997.8,1997.7,1.00133]
[1743097082778,1.00118,1998.1,1998.0,1.00118]
[1743097082980,3.2078,1998.1,1998.0,1.00118]
[1743097083282,3.2078,1998.4,1998.0,3.84]
[1743097083477,3.2078,1998.4,1997.9,5.207]
[1743097083784,1.00118,1998.0,1997.9,6.20818]
[1743097084081,1.00112,1998.2,1997.9,5.207]
[1743097084282,1.00112,1998.2,1998.1,1.00108]
[1743097084588,4.20893,1998.2,1997.9,1.367]
[1743097084784,1.00118,1998.1,1998.0,1.00113]
[1743097084977,1.00118,1998.0,1997.9,2.36821]
[1743097085184,1.00115,1998.1,1998.0,1.00113]
[1743097085381,1.00123,1998.0,1997.5,3.91551389]
[1743097085575,1.00138,1997.6,1997.5,1.00141]
[1743097085889,1.00138,1997.6,1997.5,1.00138]
[1743097085890,1.00141,1997.6,1997.5,1.00138]
[1743097086086,4.20915,1997.7,1997.6,1.00138]
[1743097086287,1.00142,1997.6,1997.5,1.00138]
[1743097087382,1.00142,1997.6,1997.5,2.41248]
[1743097087689,1.00143,1997.5,1997.4,1.00895389]
[1743097087891,4.20923,1997.5,1997.4,0.00751389]
[1743097088088,4.20923,1997.5,1997.4,1.00899389]
[1743097088387,3.2078,1997.5,1997.4,4.83699389]
[1743097088581,3.2078,1997.5,1997.4,1.00899389]
[1743097088785,4.20923,1997.5,1997.4,4.83794389]
[1743097089088,3.2078,1997.5,1997.4,1.00894389]
[1743097089586,3.2078,1997.5,1997.4,2.33814389]
[1743097089891,1.00141,1997.6,1997.5,1.00143]
[1743097090480,4.20916,1997.7,1997.6,1.00138]
[1743097090880,3.2078,1997.7,1997.6,1.00138]
[1743097091482,3.2078,1997.7,1997.6,4.81638]
[1743097091990,3.2078,1997.9,1997.8,1.00128]
[1743097092289,3.2078,1997.9,1997.8,2.36148]
[1743097093594,4.20903,1997.9,1997.8,2.36148]
[1743097093787,3.2078,1997.9,1997.8,2.36148]
[1743097095584,4.20903,1997.9,1997.8,2.36148]
[1743097095989,1.00132,1997.8,1997.7,1.00128]
[1743097096185,2.35022,1997.8,1997.7,1.00128]
[1743097096392,1.00138,1997.7,1997.6,1.00133]
[1743097096597,5.55808,1997.7,1997.6,1.00133]
[1743097098096,1.00138,1997.6,1997.5,2.42198]
[1743097098297,2.31588,1997.6,1997.5,2.42198]
[1743097098500,1.3145,1997.6,1997.5,2.42198]
[1743097098793,3.2078,1997.7,1997.6,1.00138]
[1743097099190,3.2078,1997.7,1997.6,4.78938]
[1743097099396,3.2078,1997.9,1997.8,1.00128]
[1743097099588,3.2078,1997.9,1997.8,2.40898]
[1743097101493,5.7109,1997.9,1997.6,3.78]
[1743097101694,1.00138,1997.7,1997.6,4.78135]
[1743097102198,1.00138,1997.7,1997.6,1.00135]
[1743097102993,1.00139,1997.7,1997.6,1.00135]
[1743097103186,1.00139,1997.7,1997.4,5.71895389]
[1743097103187,1.00143,1997.6,1997.5,1.0014]
[1743097103393,2.32993,1997.6,1997.5,1.0014]
[1743097104190,1.3285,1997.6,1997.5,1.0014]
[1743097104385,2.32988,1997.6,1997.5,1.0014]
[1743097104793,0.6841,1997.7,1997.6,1.00138]
[1743097105099,3.04749,1997.8,1997.7,1.00133]
[1743097105487,1.3285,1997.8,1997.7,1.00133]
[1743097105689,3.2078,1997.9,1997.8,1.00128]
[1743097105898,1.3285,1998.1,1998.0,1.00118]
[1743097106290,1.3285,1998.1,1998.0,2.38778]
[1743097107199,2.32963,1998.1,1998.0,1.00118]
[1743097107393,1.00123,1997.9,1997.8,2.38784]
[1743097107593,4.20903,1997.9,1997.8,2.38788]
[1743097107996,3.2078,1997.9,1997.8,2.38788]
[1743097108499,4.5946,1997.9,1997.8,2.38788]
[1743097108895,5.59583,1997.9,1997.8,2.38788]
[1743097109608,3.2078,1997.9,1997.8,2.38788]
[1743097109786,1.00118,1998.0,1997.9,1.00123]
[1743097109990,1.00118,1998.0,1997.9,2.36443]
[1743097111695,1.00143,1997.5,1997.4,0.00751389]
[1743097111997,1.00143,1997.5,1997.4,1.37071389]
[1743097112203,4.20922,1997.6,1997.5,1.00143]
[1743097112494,1.00143,1997.5,1997.4,1.00895389]
[1743097112701,2.43423,1997.5,1997.4,2.43019389]
[1743097113102,2.43423,1997.5,1997.4,1.42871389]
[1743097113406,2.43423,1997.5,1997.4,2.43019389]
[1743097115298,2.43423,1997.5,1997.4,1.42871389]
[1743097115600,2.43423,1997.5,1997.4,0.00751389]
[1743097115798,2.43423,1997.5,1996.6,26.639]
[1743097115799,8.93998,1997.5,1996.6,26.639]
[1743097116003,4.20957,1996.9,1996.8,1.00178]
[1743097116803,1.00186,1996.7,1996.6,1.00184]
[1743097117114,3.2078,1996.7,1996.6,2.35954]
[1743097117806,2.38419,1996.8,1996.7,1.00183]
[1743097118196,1.00186,1996.7,1996.6,1.00184]
[1743097118405,5.61536,1996.7,1996.6,1.00184]
[1743097118806,1.00188,1996.6,1996.5,2.34244389]
[1743097119108,2.40758,1996.6,1996.5,2.34244389]
[1743097119603,2.40758,1996.6,1996.5,1.34051389]
[1743097120107,2.40758,1996.6,1996.5,0.00751389]
[1743097120697,2.40758,1996.6,1996.5,1.00944389]
[1743097122204,1.4057,1996.6,1996.5,1.00944389]
[1743097122401,2.40758,1996.6,1996.5,1.00944389]
[1743097122806,3.2078,1996.7,1996.6,1.00188]
[1743097123006,3.2078,1996.7,1996.6,2.40348]
[1743097126398,4.20963,1996.7,1996.6,2.40348]
[1743097126604,5.57283,1996.7,1996.6,2.40348]
[1743097127299,5.57283,1996.7,1996.6,1.00188]
[1743097128210,4.571,1996.7,1996.6,1.00188]
[1743097128513,5.57283,1996.7,1996.6,1.00188]
[1743097128907,1.00188,1996.6,1996.5,1.40991389]
[1743097129111,1.00188,1996.6,1996.0,1.71117]
[1743097129112,1.00213,1996.1,1996.0,1.71117]
[1743097129412,6.33034,1996.6,1996.0,1.71117]
[1743097129413,3.2078,1996.2,1996.1,1.00209]
[1743097131011,5.52798,1996.2,1996.1,1.00209]
[1743097132707,4.5259,1996.2,1996.1,1.00209]
[1743097133111,3.2078,1996.2,1996.1,1.00209]
[1743097133415,4.20976,1996.5,1996.2,2.50509]
[1743097133606,1.3117,1996.6,1996.5,1.00193]
[1743097134111,4.20964,1996.7,1996.6,1.00188]
[1743097134317,5.52134,1996.7,1996.6,1.00188]
[1743097134810,3.2078,1996.7,1996.6,1.00188]
[1743097135214,4.20963,1996.7,1996.6,1.00188]
[1743097137816,3.2078,1996.7,1996.6,1.00188]
[1743097138212,4.6358,1996.7,1996.6,1.00188]
[1743097139704,5.63763,1996.7,1996.6,1.00188]
[1743097140209,5.63765,1996.7,1996.6,1.00188]
[1743097140412,4.6358,1996.7,1996.6,1.00188]
[1743097140820,5.63763,1996.7,1996.6,1.00188]
[1743097141316,2.5047,1996.6,1996.1,5.952]
[1743097141518,4.20982,1996.4,1996.3,1.002]
[1743097142009,1.00203,1996.3,1996.2,2.44896]
[1743097142209,1.3561,1996.3,1996.2,2.44896]
[1743097142804,4.5407,1996.6,1996.2,1.4469]
[1743097143009,1.3551,1996.6,1996.5,1.00193]
[1743097143205,3.2078,1996.7,1996.6,1.00188]
[1743097144220,4.5629,1996.9,1996.8,1.00178]
[1743097144811,4.5629,1996.9,1996.8,2.39468]
[1743097145310,0.00751389,1997.0,1996.9,1.00173]
[1743097146015,0.00751389,1997.0,1996.9,3.645]
[1743097146316,1.38441389,1997.0,1996.9,4.64673]
[1743097146517,1.00173,1996.9,1996.8,1.3929]
[1743097146716,4.20953,1996.9,1996.8,2.39468]
[1743097147517,1.00178,1996.8,1996.7,1.00181]
[1743097147720,1.3769,1996.8,1996.7,1.00181]
[1743097148208,1.3769,1996.8,1996.7,2.36011]
[1743097149623,3.2078,1996.9,1996.8,1.00178]
[1743097149818,1.43371389,1997.0,1996.9,1.00173]
[1743097150321,0.00751389,1997.0,1996.9,1.00173]
[1743097150622,0.00751389,1997.0,1996.9,4.63773]
[1743097150818,3.2078,1997.4,1997.3,1.00153]
[1743097151420,23.29689307,1997.7,1997.6,1.00138]
[1743097151719,24.72313307,1997.7,1997.5,3.638]
[1743097151916,23.72176307,1997.7,1997.6,1.00138]
[1743097152307,3.2078,1997.7,1997.6,2.31028]
[1743097152708,0.00751389,1997.8,1997.7,1.00133]
[1743097152914,0.00751389,1997.8,1997.7,2.31023]
[1743097153613,4.21659389,1997.8,1997.7,3.633]
[1743097154116,3.21531389,1997.8,1997.7,3.633]
[1743097154318,3.21531389,1997.8,1997.7,4.63433]
[1743097154714,5.53389389,1997.8,1997.7,4.63433]
[1743097155114,4.53261389,1997.8,1997.6,1.00137]
[1743097155622,4.53261389,1997.8,1997.7,1.00133]
[1743097155815,5.53389389,1997.8,1997.5,5.65501389]
[1743097156019,5.53389389,1997.8,1997.7,1.00133]
[1743097156320,4.53261389,1997.8,1997.7,1.00133]
[1743097160016,0.00751389,1997.8,1997.7,1.00133]
[1743097160217,3.21531389,1997.8,1997.6,1.00135]
[1743097160419,3.21531389,1997.8,1997.7,4.62033]
[1743097163120,0.00751389,1997.8,1997.7,4.62033]
[1743097163816,0.00751389,1997.8,1997.7,27.52033]
[1743097164721,0.00751389,1997.8,1997.7,27.50433]
[1743097167822,3.2078,1998.0,1997.9,1.00123]
[1743097168528,0.7126,1998.3,1998.0,1.00118]
[1743097168829,22.29556307,1998.4,1998.3,1.00103]
[1743097170728,3.2078,1998.4,1998.3,1.00103]
[1743097171130,0.00751389,1998.5,1998.4,1.00098]
[1743097171425,0.00751389,1998.5,1998.4,4.57998]
[1743097174328,3.21531389,1998.5,1998.3,1.00099]
[1743097174529,2.419,1998.4,1998.3,3.574]
[1743097174931,1.00103,1998.3,1998.2,1.00105]
[1743097175137,6.31433,1998.3,1998.2,1.00105]
[1743097175631,5.3133,1998.3,1998.2,1.00105]
[1743097175829,6.31433,1998.3,1998.2,1.00105]
[1743097176032,5.3133,1998.3,1998.2,1.00105]
[1743097176527,4.6258,1998.3,1998.2,1.00105]
[1743097176732,3.2078,1998.3,1998.2,2.38375]
[1743097176923,3.2078,1998.3,1998.2,3.07815]
[1743097178136,3.2078,1998.3,1998.2,6.64815]
[1743097180628,3.2078,1998.3,1998.2,5.95075]
[1743097181335,3.2078,1998.3,1998.2,5.94875]
[1743097182636,0.00751389,1998.5,1998.2,8.44875]
[1743097182826,19.08776307,1998.8,1998.7,1.00083]
[1743097183028,19.08776307,1998.8,1998.7,4.57783]
[1743097183431,19.08776307,1998.8,1998.7,5.88173]
[1743097184132,16.94158863,1998.8,1998.7,5.88173]
[1743097184630,0.00488262,1998.9,1998.8,1.00078]
[1743097184833,0.00488262,1998.9,1998.8,4.20858]
[1743097185936,0.00488262,1998.9,1998.8,7.78158]
[1743097187632,0.00488262,1998.9,1998.8,4.20858]
[1743097187835,0.00488262,1998.9,1998.8,7.77658]
[1743097189533,0.00488262,1998.9,1998.8,4.20858]